[Event "Titled Tuesday Blitz August 16 Late 2022"]
[White "Tristan, Leonardo"]
[Black "Melikyan, Gnel"]
[WhiteFideId "113816"]
[BlackFideId "54109990"]
[WhiteElo "2404"]
[BlackElo "1772"]
[Result "1-0"]
[Round "03"]
[TimeControl "180+1"]
[Date "2022.08.16"]
[WhiteClock "0:00:25"]
[BlackClock "0:00:12"]

1. d4 {[%clk 0:03:00]}  Nf6 {[%clk 0:02:58]} 2. Nf3 {[%clk 0:03:01]}  g6 {[%clk 0:02:59]} 3. Bf4 {[%clk 0:03:01]}  Bg7 {[%clk 0:02:59]} 4. e3 {[%clk 0:03:01]}  d6 {[%clk 0:02:59]} 5. Be2 {[%clk 0:03:01]}  O-O {[%clk 0:02:59]} 6. O-O {[%clk 0:03:01]}  Nc6 {[%clk 0:02:59]} 7. c3 {[%clk 0:03:01]}  Ne4 {[%clk 0:02:58]} 8. Qc2 {[%clk 0:02:46]}  e5 {[%clk 0:02:56]} 9. Qxe4 {[%clk 0:02:42]}  exf4 {[%clk 0:02:31]} 10. Qxf4 {[%clk 0:02:43]}  b6 {[%clk 0:02:22]} 11. Nbd2 {[%clk 0:02:40]}  Bb7 {[%clk 0:02:21]} 12. h4 {[%clk 0:02:40]}  Ne7 {[%clk 0:02:19]} 13. h5 {[%clk 0:02:37]}  Nd5 {[%clk 0:02:19]} 14. Qh2 {[%clk 0:02:24]}  Qe7 {[%clk 0:02:09]} 15. Bd3 {[%clk 0:02:22]}  Rae8 {[%clk 0:02:03]} 16. Rfe1 {[%clk 0:02:15]}  Qf6 {[%clk 0:01:51]} 17. Ne4 {[%clk 0:02:09]}  Qe7 {[%clk 0:01:42]} 18. Ng3 {[%clk 0:02:06]}  Nf6 {[%clk 0:01:34]} 19. e4 {[%clk 0:02:03]}  Ng4 {[%clk 0:01:28]} 20. Qh1 {[%clk 0:02:03]}  c5 {[%clk 0:01:24]} 21. Bb5 {[%clk 0:01:58]}  Rd8 {[%clk 0:01:20]} 22. d5 {[%clk 0:01:56]}  Bc8 {[%clk 0:01:15]} 23. a4 {[%clk 0:01:54]}  Ne5 {[%clk 0:01:14]} 24. Nd2 {[%clk 0:01:47]}  Qg5 {[%clk 0:01:10]} 25. Ndf1 {[%clk 0:01:39]}  f5 {[%clk 0:00:48]} 26. exf5 {[%clk 0:01:28]}  gxf5 {[%clk 0:00:48]} 27. Be2 {[%clk 0:01:17]}  Bh6 {[%clk 0:00:29]} 28. Nh2 {[%clk 0:01:15]}  Qg7 {[%clk 0:00:20]} 29. Nf3 {[%clk 0:01:13]}  Bf4 {[%clk 0:00:20]} 30. Qh4 {[%clk 0:01:09]}  Bxg3 {[%clk 0:00:18]} 31. Qxg3 {[%clk 0:01:08]}  f4 {[%clk 0:00:17]} 32. Qxg7+ {[%clk 0:01:08]}  Kxg7 {[%clk 0:00:18]} 33. Nxe5 {[%clk 0:01:08]}  dxe5 {[%clk 0:00:19]} 34. Bf3 {[%clk 0:01:08]}  Kf6 {[%clk 0:00:20]} 35. a5 {[%clk 0:01:08]}  b5 {[%clk 0:00:20]} 36. a6 {[%clk 0:01:02]}  Rd6 {[%clk 0:00:20]} 37. Ra5 {[%clk 0:01:02]}  Bxa6 {[%clk 0:00:18]} 38. Rea1 {[%clk 0:01:00]}  Bb7 {[%clk 0:00:19]} 39. Rxb5 {[%clk 0:01:00]}  Bxd5 {[%clk 0:00:19]} 40. Bxd5 {[%clk 0:00:32]}  Rxd5 {[%clk 0:00:20]} 41. Rxa7 {[%clk 0:00:32]}  h6 {[%clk 0:00:20]} 42. Rb6+ {[%clk 0:00:30]}  Kg5 {[%clk 0:00:19]} 43. Rg7+ {[%clk 0:00:30]}  Kxh5 {[%clk 0:00:19]} 44. Rgg6 {[%clk 0:00:29]}  Rd1+ {[%clk 0:00:16]} 45. Kh2 {[%clk 0:00:29]}  Rd2 {[%clk 0:00:17]} 46. f3 {[%clk 0:00:29]}  Re2 {[%clk 0:00:13]} 47. Rxh6+ {[%clk 0:00:29]}  Kg5 {[%clk 0:00:14]} 48. Rbg6+ {[%clk 0:00:29]}  Kf5 {[%clk 0:00:14]} 49. Kh3 {[%clk 0:00:26]}  Rxb2 {[%clk 0:00:13]} 50. Kh4 {[%clk 0:00:25]}  Rb1 {[%clk 0:00:12]} 51. Rg5# {[%clk 0:00:25]} 1-0


[Site "https://www.chess.com"]

[Event "Titled Tuesday Blitz August 16 Late 2022"]
[White "Vagman, Roy"]
[Black "Leitao, Rafael"]
[WhiteFideId "2828995"]
[BlackFideId "2101246"]
[WhiteElo "1956"]
[BlackElo "2609"]
[Result "0-1"]
[Round "03"]
[TimeControl "180+1"]
[Date "2022.08.18"]
[WhiteClock "0:00:00"]
[BlackClock "0:00:00"]

1. d4 {[%clk 0:00:00]}  Nf6 {[%clk 0:00:00]} 2. Nf3 {[%clk 0:00:00]}  e6 {[%clk 0:00:00]} 3. g3 {[%clk 0:00:00]}  d5 {[%clk 0:00:00]} 4. Bg2 {[%clk 0:00:00]}  Be7 {[%clk 0:00:00]} 5. O-O {[%clk 0:00:00]}  O-O {[%clk 0:00:00]} 6. c4 {[%clk 0:00:00]}  dxc4 {[%clk 0:00:00]} 7. Qc2 {[%clk 0:00:00]}  a6 {[%clk 0:00:00]} 8. a4 {[%clk 0:00:00]}  Bd7 {[%clk 0:00:00]} 9. Qxc4 {[%clk 0:00:00]}  Bc6 {[%clk 0:00:00]} 10. Bf4 {[%clk 0:00:00]}  a5 {[%clk 0:00:00]} 11. Nc3 {[%clk 0:00:00]}  Na6 {[%clk 0:00:00]} 12. Rfd1 {[%clk 0:00:00]}  Bd5 {[%clk 0:00:00]} 13. Nxd5 {[%clk 0:00:00]}  exd5 {[%clk 0:00:00]} 14. Qb3 {[%clk 0:00:00]}  Nb4 {[%clk 0:00:00]} 15. Ne5 {[%clk 0:00:00]}  c6 {[%clk 0:00:00]} 16. Rac1 {[%clk 0:00:00]}  Qb6 {[%clk 0:00:00]} 17. h4 {[%clk 0:00:00]}  h6 {[%clk 0:00:00]} 18. Bh3 {[%clk 0:00:00]}  Rfe8 {[%clk 0:00:00]} 19. Kh2 {[%clk 0:00:00]}  Rad8 {[%clk 0:00:00]} 20. Qf3 {[%clk 0:00:00]}  c5 {[%clk 0:00:00]} 21. g4 {[%clk 0:00:00]}  Nc6 {[%clk 0:00:00]} 22. g5 {[%clk 0:00:00]}  hxg5 {[%clk 0:00:00]} 23. hxg5 {[%clk 0:00:00]}  Nxe5 {[%clk 0:00:00]} 24. dxe5 {[%clk 0:00:00]}  Ne4 {[%clk 0:00:00]} 25. Rg1 {[%clk 0:00:00]}  Qg6 {[%clk 0:00:00]} 26. Qg2 {[%clk 0:00:00]}  c4 {[%clk 0:00:00]} 27. Rcd1 {[%clk 0:00:00]}  d4 {[%clk 0:00:00]} 28. f3 {[%clk 0:00:00]}  Nc5 {[%clk 0:00:00]} 29. Qg4 {[%clk 0:00:00]}  d3 {[%clk 0:00:00]} 30. e4 {[%clk 0:00:00]}  Nxa4 {[%clk 0:00:00]} 31. Qh4 {[%clk 0:00:00]}  Qh7 {[%clk 0:00:00]} 32. Qf2 {[%clk 0:00:00]}  c3 {[%clk 0:00:00]} 33. e6 {[%clk 0:00:00]}  c2 {[%clk 0:00:00]} 34. exf7+ {[%clk 0:00:00]}  Kxf7 {[%clk 0:00:00]} 35. Rd2 {[%clk 0:00:00]}  g6 {[%clk 0:00:00]} 36. Qg3 {[%clk 0:00:00]}  Rh8 {[%clk 0:00:00]} 37. Qg4 {[%clk 0:00:00]}  Qxh3+ {[%clk 0:00:00]} 38. Qxh3 {[%clk 0:00:00]}  Rxh3+ {[%clk 0:00:00]} 39. Kxh3 {[%clk 0:00:00]}  Nxb2 {[%clk 0:00:00]} 40. Rc1 {[%clk 0:00:00]}  Nc4 {[%clk 0:00:00]} 41. Rdxc2 {[%clk 0:00:00]}  dxc2 {[%clk 0:00:00]} 42. Rxc2 {[%clk 0:00:00]}  b5 {[%clk 0:00:00]} 43. Kg4 {[%clk 0:00:00]}  a4 {[%clk 0:00:00]} 44. Rh2 {[%clk 0:00:00]}  Kg7 {[%clk 0:00:00]} 45. Rh6 {[%clk 0:00:00]}  a3 {[%clk 0:00:00]} 46. Bg3 {[%clk 0:00:00]}  a2 {[%clk 0:00:00]} 47. Rh1 {[%clk 0:00:00]}  Bc5 {[%clk 0:00:00]} 48. Bc7 {[%clk 0:00:00]}  Rd7 {[%clk 0:00:00]} 49. Bb8 {[%clk 0:00:00]}  Bd4 {[%clk 0:00:00]} 50. Bf4 {[%clk 0:00:00]}  a1=Q {[%clk 0:00:00]} 51. Rxa1 {[%clk 0:00:00]}  Bxa1 {[%clk 0:00:00]} 52. Bg3 {[%clk 0:00:00]}  Ne5+ {[%clk 0:00:00]} 53. Bxe5+ {[%clk 0:00:00]}  Bxe5 {[%clk 0:00:00]} 54. f4 {[%clk 0:00:00]}  Bd4 {[%clk 0:00:00]} 55. f5 {[%clk 0:00:00]}  gxf5+ {[%clk 0:00:00]} 56. exf5 {[%clk 0:00:00]}  b4 {[%clk 0:00:00]} 57. Kh5 {[%clk 0:00:00]}  b3 {[%clk 0:00:00]} 58. Kg4 {[%clk 0:00:00]}  b2 {[%clk 0:00:00]} 59. f6+ {[%clk 0:00:00]}  Bxf6 {[%clk 0:00:00]} 60. Kh5 {[%clk 0:00:00]}  Be5 {[%clk 0:00:00]} 61. g6 {[%clk 0:00:00]}  b1=Q {[%clk 0:00:00]} 62. Kg4 {[%clk 0:00:00]}  Qe4+ {[%clk 0:00:00]} 63. Kh3 {[%clk 0:00:00]}  Rd3# {[%clk 0:00:00]} 0-1


[Site "https://www.chess.com"]

[Event "Titled Tuesday Blitz August 16 Late 2022"]
[White "Vivekananthan, Anish"]
[Black "Taichman, Ori"]
[WhiteFideId "2090775"]
[BlackFideId "2804069"]
[WhiteElo "2831"]
[BlackElo "2227"]
[Result "1-0"]
[Round "03"]
[TimeControl "180+1"]
[Date "2022.08.16"]
[WhiteClock "0:00:05"]
[BlackClock "0:00:09"]

1. d4 {[%clk 0:03:00]}  Nf6 {[%clk 0:02:57]} 2. Nf3 {[%clk 0:03:00]}  g6 {[%clk 0:02:58]} 3. Nbd2 {[%clk 0:02:59]}  d5 {[%clk 0:02:57]} 4. b4 {[%clk 0:02:59]}  Bg7 {[%clk 0:02:54]} 5. e3 {[%clk 0:02:57]}  a5 {[%clk 0:02:54]} 6. b5 {[%clk 0:02:55]}  c5 {[%clk 0:02:55]} 7. c4 {[%clk 0:02:37]}  O-O {[%clk 0:02:41]} 8. dxc5 {[%clk 0:02:30]}  Ne4 {[%clk 0:02:37]} 9. Nxe4 {[%clk 0:02:29]}  dxe4 {[%clk 0:02:18]} 10. Nd4 {[%clk 0:02:23]}  e5 {[%clk 0:01:52]} 11. Nb3 {[%clk 0:01:55]}  Qxd1+ {[%clk 0:01:51]} 12. Kxd1 {[%clk 0:01:55]}  Rd8+ {[%clk 0:01:46]} 13. Kc2 {[%clk 0:01:53]}  a4 {[%clk 0:01:37]} 14. Nd2 {[%clk 0:01:50]}  f5 {[%clk 0:01:35]} 15. Be2 {[%clk 0:01:32]}  Nd7 {[%clk 0:01:28]} 16. Ba3 {[%clk 0:01:04]}  Bf8 {[%clk 0:01:27]} 17. f3 {[%clk 0:00:57]}  Nxc5 {[%clk 0:01:20]} 18. Rhd1 {[%clk 0:00:30]}  exf3 {[%clk 0:01:01]} 19. gxf3 {[%clk 0:00:29]}  f4 {[%clk 0:00:56]} 20. e4 {[%clk 0:00:24]}  Ne6 {[%clk 0:00:51]} 21. Bb2 {[%clk 0:00:24]}  Nd4+ {[%clk 0:00:39]} 22. Bxd4 {[%clk 0:00:24]}  Rxd4 {[%clk 0:00:40]} 23. Nb1 {[%clk 0:00:24]}  Bc5 {[%clk 0:00:40]} 24. Nc3 {[%clk 0:00:24]}  Be6 {[%clk 0:00:39]} 25. Nd5 {[%clk 0:00:23]}  Bxd5 {[%clk 0:00:34]} 26. exd5 {[%clk 0:00:20]}  e4 {[%clk 0:00:34]} 27. Rxd4 {[%clk 0:00:19]}  Bxd4 {[%clk 0:00:34]} 28. Rd1 {[%clk 0:00:19]}  exf3 {[%clk 0:00:33]} 29. Bxf3 {[%clk 0:00:18]}  Bc5 {[%clk 0:00:30]} 30. d6 {[%clk 0:00:18]}  Rd8 {[%clk 0:00:30]} 31. d7 {[%clk 0:00:18]}  b6 {[%clk 0:00:31]} 32. Bc6 {[%clk 0:00:16]}  Kf7 {[%clk 0:00:31]} 33. Re1 {[%clk 0:00:15]}  f3 {[%clk 0:00:24]} 34. Kd3 {[%clk 0:00:08]}  f2 {[%clk 0:00:23]} 35. Rf1 {[%clk 0:00:08]}  g5 {[%clk 0:00:20]} 36. Ke4 {[%clk 0:00:08]}  Kf6 {[%clk 0:00:20]} 37. Kf3 {[%clk 0:00:08]}  h5 {[%clk 0:00:19]} 38. Kg2 {[%clk 0:00:08]}  g4 {[%clk 0:00:19]} 39. Rd1 {[%clk 0:00:08]}  h4 {[%clk 0:00:18]} 40. Rd3 {[%clk 0:00:06]}  Kg5 {[%clk 0:00:15]} 41. Rd5+ {[%clk 0:00:04]}  Kg6 {[%clk 0:00:10]} 42. Rd3 {[%clk 0:00:03]}  Rf8 {[%clk 0:00:09]} 43. Kf1 {[%clk 0:00:03]}  Be7 {[%clk 0:00:08]} 44. Be4+ {[%clk 0:00:02]}  Kg5 {[%clk 0:00:08]} 45. Bc6 {[%clk 0:00:03]}  g3 {[%clk 0:00:07]} 46. hxg3 {[%clk 0:00:03]}  h3 {[%clk 0:00:07]} 47. Re3 {[%clk 0:00:02]}  Bd8 {[%clk 0:00:06]} 48. Re5+ {[%clk 0:00:02]}  Kg4 {[%clk 0:00:06]} 49. Re8 {[%clk 0:00:02]}  h2 {[%clk 0:00:05]} 50. Rxf8 {[%clk 0:00:02]}  h1=Q+ {[%clk 0:00:05]} 51. Bxh1 {[%clk 0:00:02]}  Be7 {[%clk 0:00:06]} 52. Bc6 {[%clk 0:00:02]}  Bxf8 {[%clk 0:00:06]} 53. d8=Q {[%clk 0:00:03]}  Be7 {[%clk 0:00:07]} 54. Qxe7 {[%clk 0:00:03]}  Kxg3 {[%clk 0:00:08]} 55. Qe3+ {[%clk 0:00:03]}  Kh2 {[%clk 0:00:08]} 56. Qxf2+ {[%clk 0:00:04]}  Kh3 {[%clk 0:00:08]} 57. Qg2+ {[%clk 0:00:04]}  Kh4 {[%clk 0:00:09]} 58. Bf3 {[%clk 0:00:05]}  a3 {[%clk 0:00:09]} 59. Qg4# {[%clk 0:00:05]} 1-0


[Site "https://www.chess.com"]

[Event "Titled Tuesday Blitz August 16 Late 2022"]
[White "Wadsworth, Matthew J"]
[Black "Zamorano, Jorge"]
[WhiteFideId "415804"]
[BlackFideId "173770"]
[WhiteElo "2294"]
[BlackElo "2331"]
[Result "1-0"]
[Round "03"]
[TimeControl "180+1"]
[Date "2022.08.18"]
[WhiteClock "0:00:00"]
[BlackClock "0:00:00"]

1. Nf3 {[%clk 0:00:00]}  Nf6 {[%clk 0:00:00]} 2. g3 {[%clk 0:00:00]}  g6 {[%clk 0:00:00]} 3. Bg2 {[%clk 0:00:00]}  Bg7 {[%clk 0:00:00]} 4. O-O {[%clk 0:00:00]}  O-O {[%clk 0:00:00]} 5. c4 {[%clk 0:00:00]}  Nc6 {[%clk 0:00:00]} 6. Nc3 {[%clk 0:00:00]}  d6 {[%clk 0:00:00]} 7. Rb1 {[%clk 0:00:00]}  a5 {[%clk 0:00:00]} 8. a3 {[%clk 0:00:00]}  e5 {[%clk 0:00:00]} 9. d3 {[%clk 0:00:00]}  Ng4 {[%clk 0:00:00]} 10. b4 {[%clk 0:00:00]}  axb4 {[%clk 0:00:00]} 11. axb4 {[%clk 0:00:00]}  f5 {[%clk 0:00:00]} 12. b5 {[%clk 0:00:00]}  Ne7 {[%clk 0:00:00]} 13. Qb3 {[%clk 0:00:00]}  Kh8 {[%clk 0:00:00]} 14. Bg5 {[%clk 0:00:00]}  h6 {[%clk 0:00:00]} 15. Bxe7 {[%clk 0:00:00]}  Qxe7 {[%clk 0:00:00]} 16. Nd5 {[%clk 0:00:00]}  Qd8 {[%clk 0:00:00]} 17. Nd2 {[%clk 0:00:00]}  h5 {[%clk 0:00:00]} 18. e4 {[%clk 0:00:00]}  f4 {[%clk 0:00:00]} 19. f3 {[%clk 0:00:00]}  Ne3 {[%clk 0:00:00]} 20. Rfe1 {[%clk 0:00:00]}  Bh6 {[%clk 0:00:00]} 21. Nxe3 {[%clk 0:00:00]}  fxe3 {[%clk 0:00:00]} 22. Nf1 {[%clk 0:00:00]}  h4 {[%clk 0:00:00]} 23. Nxe3 {[%clk 0:00:00]}  hxg3 {[%clk 0:00:00]} 24. hxg3 {[%clk 0:00:00]}  Kg7 {[%clk 0:00:00]} 25. Kf2 {[%clk 0:00:00]}  Be6 {[%clk 0:00:00]} 26. Qc3 {[%clk 0:00:00]}  Ra2+ {[%clk 0:00:00]} 27. Rb2 {[%clk 0:00:00]}  Qa8 {[%clk 0:00:00]} 28. Rxa2 {[%clk 0:00:00]}  Qxa2+ {[%clk 0:00:00]} 29. Re2 {[%clk 0:00:00]}  Qa7 {[%clk 0:00:00]} 30. c5 {[%clk 0:00:00]}  Bxe3+ {[%clk 0:00:00]} 31. Kxe3 {[%clk 0:00:00]}  Qxc5+ {[%clk 0:00:00]} 32. Qxc5 {[%clk 0:00:00]}  dxc5 {[%clk 0:00:00]} 33. b6 {[%clk 0:00:00]}  Rc8 {[%clk 0:00:00]} 34. bxc7 {[%clk 0:00:00]}  Rxc7 {[%clk 0:00:00]} 35. Rb2 {[%clk 0:00:00]}  Bd7 {[%clk 0:00:00]} 36. Rb6 {[%clk 0:00:00]}  Bc6 {[%clk 0:00:00]} 37. Bh3 {[%clk 0:00:00]}  Kf6 {[%clk 0:00:00]} 38. f4 {[%clk 0:00:00]}  Rh7 {[%clk 0:00:00]} 39. Bc8 {[%clk 0:00:00]}  exf4+ {[%clk 0:00:00]} 40. gxf4 {[%clk 0:00:00]}  g5 {[%clk 0:00:00]} 41. Bxb7 {[%clk 0:00:00]}  gxf4+ {[%clk 0:00:00]} 42. Kxf4 {[%clk 0:00:00]}  Rxb7 {[%clk 0:00:00]} 43. Rxc6+ {[%clk 0:00:00]} 1-0


[Site "https://www.chess.com"]

[Event "Titled Tuesday Blitz August 16 Late 2022"]
[White "Xu, Jeffrey"]
[Black "Potapova, Margarita"]
[WhiteFideId "2617110"]
[BlackFideId "14126869"]
[WhiteElo "2047"]
[BlackElo "2225"]
[Result "1-0"]
[Round "03"]
[TimeControl "180+1"]
[Date "2022.08.18"]
[WhiteClock "0:00:00"]
[BlackClock "0:00:00"]

1. e4 {[%clk 0:00:00]}  d6 {[%clk 0:00:00]} 2. d4 {[%clk 0:00:00]}  g6 {[%clk 0:00:00]} 3. Nf3 {[%clk 0:00:00]}  Bg7 {[%clk 0:00:00]} 4. h4 {[%clk 0:00:00]}  h5 {[%clk 0:00:00]} 5. Qd3 {[%clk 0:00:00]}  a6 {[%clk 0:00:00]} 6. Rg1 {[%clk 0:00:00]}  b5 {[%clk 0:00:00]} 7. a4 {[%clk 0:00:00]}  bxa4 {[%clk 0:00:00]} 8. Ng5 {[%clk 0:00:00]}  Nh6 {[%clk 0:00:00]} 9. Rxa4 {[%clk 0:00:00]}  Nd7 {[%clk 0:00:00]} 10. Nc3 {[%clk 0:00:00]}  Nb6 {[%clk 0:00:00]} 11. Ra5 {[%clk 0:00:00]}  O-O {[%clk 0:00:00]} 12. f3 {[%clk 0:00:00]}  c5 {[%clk 0:00:00]} 13. dxc5 {[%clk 0:00:00]}  Nd7 {[%clk 0:00:00]} 14. Ra1 {[%clk 0:00:00]}  Nxc5 {[%clk 0:00:00]} 15. Qe3 {[%clk 0:00:00]}  Qb6 {[%clk 0:00:00]} 16. Nd5 {[%clk 0:00:00]}  Qa7 {[%clk 0:00:00]} 17. Bc4 {[%clk 0:00:00]}  e6 {[%clk 0:00:00]} 18. Nf4 {[%clk 0:00:00]}  d5 {[%clk 0:00:00]} 19. exd5 {[%clk 0:00:00]}  Nf5 {[%clk 0:00:00]} 20. Qf2 {[%clk 0:00:00]}  Bd4 {[%clk 0:00:00]} 21. Qe2 {[%clk 0:00:00]}  e5 {[%clk 0:00:00]} 22. Nfh3 {[%clk 0:00:00]}  Bxg1 {[%clk 0:00:00]} 23. Nxg1 {[%clk 0:00:00]}  Nd3+ {[%clk 0:00:00]} 24. Bxd3 {[%clk 0:00:00]}  Qxg1+ {[%clk 0:00:00]} 25. Qf1 {[%clk 0:00:00]}  Qh2 {[%clk 0:00:00]} 26. Bxf5 {[%clk 0:00:00]}  Bxf5 {[%clk 0:00:00]} 27. Qf2 {[%clk 0:00:00]}  Rac8 {[%clk 0:00:00]} 28. c3 {[%clk 0:00:00]}  Qh1+ {[%clk 0:00:00]} 29. Kd2 {[%clk 0:00:00]}  Rfd8 {[%clk 0:00:00]} 30. Ra5 {[%clk 0:00:00]}  Rd7 {[%clk 0:00:00]} 31. Ne4 {[%clk 0:00:00]}  Kg7 {[%clk 0:00:00]} 32. Qg3 {[%clk 0:00:00]}  f6 {[%clk 0:00:00]} 33. Kc2 {[%clk 0:00:00]}  Bxe4+ {[%clk 0:00:00]} 34. fxe4 {[%clk 0:00:00]}  Qf1 {[%clk 0:00:00]} 35. Qf3 {[%clk 0:00:00]}  Qg1 {[%clk 0:00:00]} 36. Be3 {[%clk 0:00:00]}  Qe1 {[%clk 0:00:00]} 37. Rxa6 {[%clk 0:00:00]}  Qxh4 {[%clk 0:00:00]} 38. g3 {[%clk 0:00:00]}  Qh2+ {[%clk 0:00:00]} 39. Kb1 {[%clk 0:00:00]}  Rf8 {[%clk 0:00:00]} 40. c4 {[%clk 0:00:00]}  Rb7 {[%clk 0:00:00]} 41. Rb6 {[%clk 0:00:00]}  Rxb6 {[%clk 0:00:00]} 42. Bxb6 {[%clk 0:00:00]}  Rb8 {[%clk 0:00:00]} 43. c5 {[%clk 0:00:00]}  Qh3 {[%clk 0:00:00]} 44. d6 {[%clk 0:00:00]}  Qd7 {[%clk 0:00:00]} 45. Qd3 {[%clk 0:00:00]}  f5 {[%clk 0:00:00]} 46. Qd5 {[%clk 0:00:00]} 1-0


[Site "https://www.chess.com"]

[Event "Titled Tuesday Blitz August 16 Late 2022"]
[White "Yaksin, Oleg"]
[Black "Martin Barcelo, Carles"]
[WhiteFideId "24105880"]
[BlackFideId "24561444"]
[WhiteElo "2256"]
[BlackElo "1922"]
[Result "1-0"]
[Round "03"]
[TimeControl "180+1"]
[Date "2022.08.18"]
[WhiteClock "0:00:00"]
[BlackClock "0:00:00"]

1. d4 {[%clk 0:00:00]}  d5 {[%clk 0:00:00]} 2. c4 {[%clk 0:00:00]}  e6 {[%clk 0:00:00]} 3. Nc3 {[%clk 0:00:00]}  Be7 {[%clk 0:00:00]} 4. cxd5 {[%clk 0:00:00]}  exd5 {[%clk 0:00:00]} 5. Bf4 {[%clk 0:00:00]}  c6 {[%clk 0:00:00]} 6. e3 {[%clk 0:00:00]}  Nf6 {[%clk 0:00:00]} 7. Bd3 {[%clk 0:00:00]}  O-O {[%clk 0:00:00]} 8. Qc2 {[%clk 0:00:00]}  Re8 {[%clk 0:00:00]} 9. Nge2 {[%clk 0:00:00]}  Nbd7 {[%clk 0:00:00]} 10. h3 {[%clk 0:00:00]}  Nf8 {[%clk 0:00:00]} 11. O-O {[%clk 0:00:00]}  Ne6 {[%clk 0:00:00]} 12. Be5 {[%clk 0:00:00]}  g6 {[%clk 0:00:00]} 13. Rad1 {[%clk 0:00:00]}  Ng7 {[%clk 0:00:00]} 14. Bh2 {[%clk 0:00:00]}  Bf5 {[%clk 0:00:00]} 15. Nc1 {[%clk 0:00:00]}  Bd6 {[%clk 0:00:00]} 16. Bxd6 {[%clk 0:00:00]}  Qxd6 {[%clk 0:00:00]} 17. Qb3 {[%clk 0:00:00]}  Qe7 {[%clk 0:00:00]} 18. Rfe1 {[%clk 0:00:00]}  Bxd3 {[%clk 0:00:00]} 19. Nxd3 {[%clk 0:00:00]}  Nf5 {[%clk 0:00:00]} 20. Ne5 {[%clk 0:00:00]}  Nd6 {[%clk 0:00:00]} 21. a4 {[%clk 0:00:00]}  Nd7 {[%clk 0:00:00]} 22. f4 {[%clk 0:00:00]}  Nf6 {[%clk 0:00:00]} 23. a5 {[%clk 0:00:00]}  a6 {[%clk 0:00:00]} 24. Nd3 {[%clk 0:00:00]}  Nfe4 {[%clk 0:00:00]} 25. Na4 {[%clk 0:00:00]}  Rab8 {[%clk 0:00:00]} 26. Nac5 {[%clk 0:00:00]}  Nxc5 {[%clk 0:00:00]} 27. Nxc5 {[%clk 0:00:00]}  Ne4 {[%clk 0:00:00]} 28. Nd3 {[%clk 0:00:00]}  Qh4 {[%clk 0:00:00]} 29. Rf1 {[%clk 0:00:00]}  Re7 {[%clk 0:00:00]} 30. Rf3 {[%clk 0:00:00]}  Rbe8 {[%clk 0:00:00]} 31. Ne5 {[%clk 0:00:00]}  f6 {[%clk 0:00:00]} 32. Ng4 {[%clk 0:00:00]}  Kg7 {[%clk 0:00:00]} 33. Qc2 {[%clk 0:00:00]}  h5 {[%clk 0:00:00]} 34. Nh2 {[%clk 0:00:00]}  Nd6 {[%clk 0:00:00]} 35. Nf1 {[%clk 0:00:00]}  Nf5 {[%clk 0:00:00]} 36. Qd3 {[%clk 0:00:00]}  Nd6 {[%clk 0:00:00]} 37. Kh2 {[%clk 0:00:00]}  f5 {[%clk 0:00:00]} 38. g3 {[%clk 0:00:00]}  Qf6 {[%clk 0:00:00]} 39. b3 {[%clk 0:00:00]}  Re6 {[%clk 0:00:00]} 40. Kg2 {[%clk 0:00:00]}  Qe7 {[%clk 0:00:00]} 41. Re1 {[%clk 0:00:00]}  Qc7 {[%clk 0:00:00]} 42. Qc3 {[%clk 0:00:00]}  R8e7 {[%clk 0:00:00]} 43. Rf2 {[%clk 0:00:00]}  Ne4 {[%clk 0:00:00]} 44. Qb4 {[%clk 0:00:00]}  Nxf2 {[%clk 0:00:00]} 45. Kxf2 {[%clk 0:00:00]}  Qd7 {[%clk 0:00:00]} 46. Nd2 {[%clk 0:00:00]}  Qe8 {[%clk 0:00:00]} 47. Qc3 {[%clk 0:00:00]}  Kf7 {[%clk 0:00:00]} 48. Nf3 {[%clk 0:00:00]}  Kg7 {[%clk 0:00:00]} 49. Ne5 {[%clk 0:00:00]}  Qd8 {[%clk 0:00:00]} 50. Rg1 {[%clk 0:00:00]}  Kf6 {[%clk 0:00:00]} 51. Qb4 {[%clk 0:00:00]}  Qd6 {[%clk 0:00:00]} 52. Qc3 {[%clk 0:00:00]}  Qc7 {[%clk 0:00:00]} 53. g4 {[%clk 0:00:00]}  hxg4 {[%clk 0:00:00]} 54. hxg4 {[%clk 0:00:00]}  Rh7 {[%clk 0:00:00]} 55. gxf5 {[%clk 0:00:00]}  gxf5 {[%clk 0:00:00]} 56. Rg3 {[%clk 0:00:00]}  Re8 {[%clk 0:00:00]} 57. Qa1 {[%clk 0:00:00]}  Reh8 {[%clk 0:00:00]} 58. Qg1 {[%clk 0:00:00]}  Rg7 {[%clk 0:00:00]} 59. Rg6+ {[%clk 0:00:00]}  Rxg6 {[%clk 0:00:00]} 60. Qxg6+ {[%clk 0:00:00]}  Ke7 {[%clk 0:00:00]} 61. Qg7+ {[%clk 0:00:00]}  Kd6 {[%clk 0:00:00]} 62. Qf6# {[%clk 0:00:00]} 1-0


[Site "https://www.chess.com"]

[Event "Titled Tuesday Blitz August 16 Late 2022"]
[White "Yedidia, Daniel"]
[Black "Van Foreest, Machteld"]
[WhiteFideId "30905907"]
[BlackFideId "1051563"]
[WhiteElo "2054"]
[BlackElo "1971"]
[Result "1-0"]
[Round "03"]
[TimeControl "180+1"]
[Date "2022.08.18"]
[WhiteClock "0:00:00"]
[BlackClock "0:00:00"]

1. d4 {[%clk 0:00:00]}  d5 {[%clk 0:00:00]} 2. c4 {[%clk 0:00:00]}  c6 {[%clk 0:00:00]} 3. Nc3 {[%clk 0:00:00]}  Nf6 {[%clk 0:00:00]} 4. Nf3 {[%clk 0:00:00]}  e6 {[%clk 0:00:00]} 5. e3 {[%clk 0:00:00]}  Be7 {[%clk 0:00:00]} 6. Bd3 {[%clk 0:00:00]}  O-O {[%clk 0:00:00]} 7. O-O {[%clk 0:00:00]}  Nbd7 {[%clk 0:00:00]} 8. b3 {[%clk 0:00:00]}  b6 {[%clk 0:00:00]} 9. Bb2 {[%clk 0:00:00]}  Bb7 {[%clk 0:00:00]} 10. Rc1 {[%clk 0:00:00]}  Rc8 {[%clk 0:00:00]} 11. Qe2 {[%clk 0:00:00]}  Qc7 {[%clk 0:00:00]} 12. Rfd1 {[%clk 0:00:00]}  Qb8 {[%clk 0:00:00]} 13. e4 {[%clk 0:00:00]}  dxe4 {[%clk 0:00:00]} 14. Nxe4 {[%clk 0:00:00]}  Nxe4 {[%clk 0:00:00]} 15. Bxe4 {[%clk 0:00:00]}  Nf6 {[%clk 0:00:00]} 16. Bb1 {[%clk 0:00:00]}  c5 {[%clk 0:00:00]} 17. d5 {[%clk 0:00:00]}  exd5 {[%clk 0:00:00]} 18. Qxe7 {[%clk 0:00:00]}  Rce8 {[%clk 0:00:00]} 19. Bxf6 {[%clk 0:00:00]}  Rxe7 {[%clk 0:00:00]} 20. Bxe7 {[%clk 0:00:00]}  Re8 {[%clk 0:00:00]} 21. Bh4 {[%clk 0:00:00]}  dxc4 {[%clk 0:00:00]} 22. Bg3 {[%clk 0:00:00]}  Qc8 {[%clk 0:00:00]} 23. Rxc4 {[%clk 0:00:00]}  Qe6 {[%clk 0:00:00]} 24. Bxh7+ {[%clk 0:00:00]}  Kf8 {[%clk 0:00:00]} 25. Bd6+ {[%clk 0:00:00]}  Re7 {[%clk 0:00:00]} 26. Bxe7+ {[%clk 0:00:00]}  Qxe7 {[%clk 0:00:00]} 27. Rf4 {[%clk 0:00:00]}  g5 {[%clk 0:00:00]} 28. Ra4 {[%clk 0:00:00]}  Bc6 {[%clk 0:00:00]} 29. Re1 {[%clk 0:00:00]}  Qd7 {[%clk 0:00:00]} 30. Rc4 {[%clk 0:00:00]}  f5 {[%clk 0:00:00]} 31. Nxg5 {[%clk 0:00:00]}  Bd5 {[%clk 0:00:00]} 32. Rf4 {[%clk 0:00:00]}  Qg7 {[%clk 0:00:00]} 33. Rxf5+ {[%clk 0:00:00]}  Bf7 {[%clk 0:00:00]} 34. Rxf7+ {[%clk 0:00:00]}  Qxf7 {[%clk 0:00:00]} 35. Nxf7 {[%clk 0:00:00]}  Kxf7 {[%clk 0:00:00]} 36. Bd3 {[%clk 0:00:00]}  Kf6 {[%clk 0:00:00]} 37. Bc4 {[%clk 0:00:00]} 1-0


[Site "https://www.chess.com"]